[Event "Titled Tuesday Blitz May 4 2021"]
[White "Gabrielian, Artur"]
[Black "Tang, Andrew"]
[WhiteFideId "4131002"]
[BlackFideId "2059630"]
[WhiteElo "2539"]
[BlackElo "2584"]
[Result "0-1"]
[Round "11"]
[TimeControl "180+1"]
[Date "2021.05.04"]
[WhiteClock "0:00:06"]
[BlackClock "0:00:06"]

1. e4 {[%clk 0:03:00]}  e5 {[%clk 0:02:44]} 2. Nf3 {[%clk 0:02:59]}  Nc6 {[%clk 0:02:38]} 3. Bb5 {[%clk 0:02:58]}  g6 {[%clk 0:02:38]} 4. c3 {[%clk 0:02:55]}  a6 {[%clk 0:02:27]} 5. Ba4 {[%clk 0:02:54]}  Bg7 {[%clk 0:02:27]} 6. O-O {[%clk 0:02:53]}  b5 {[%clk 0:02:27]} 7. Bb3 {[%clk 0:02:52]}  Na5 {[%clk 0:02:27]} 8. d4 {[%clk 0:02:45]}  exd4 {[%clk 0:02:26]} 9. cxd4 {[%clk 0:02:29]}  Ne7 {[%clk 0:02:24]} 10. Bf4 {[%clk 0:02:14]}  d6 {[%clk 0:02:15]} 11. Qd2 {[%clk 0:02:12]}  Nxb3 {[%clk 0:02:09]} 12. axb3 {[%clk 0:02:12]}  h6 {[%clk 0:02:10]} 13. Nc3 {[%clk 0:02:09]}  Bd7 {[%clk 0:02:05]} 14. Rfe1 {[%clk 0:02:08]}  g5 {[%clk 0:02:05]} 15. Bg3 {[%clk 0:02:08]}  O-O {[%clk 0:02:05]} 16. h4 {[%clk 0:02:06]}  g4 {[%clk 0:02:03]} 17. Nh2 {[%clk 0:02:05]}  f5 {[%clk 0:02:03]} 18. e5 {[%clk 0:02:02]}  d5 {[%clk 0:01:41]} 19. Bf4 {[%clk 0:01:54]}  Kh7 {[%clk 0:01:38]} 20. Nf1 {[%clk 0:01:49]}  Be6 {[%clk 0:01:32]} 21. Ne2 {[%clk 0:01:40]}  Rg8 {[%clk 0:01:20]} 22. b4 {[%clk 0:01:38]}  Bf8 {[%clk 0:01:16]} 23. g3 {[%clk 0:01:36]}  Nc6 {[%clk 0:01:14]} 24. Rec1 {[%clk 0:01:33]}  Nxb4 {[%clk 0:01:13]} 25. Ne3 {[%clk 0:01:23]}  c6 {[%clk 0:01:13]} 26. Rc5 {[%clk 0:01:18]}  a5 {[%clk 0:01:08]} 27. Rac1 {[%clk 0:01:08]}  Qd7 {[%clk 0:01:06]} 28. b3 {[%clk 0:00:58]}  Bxc5 {[%clk 0:01:06]} 29. dxc5 {[%clk 0:00:51]}  d4 {[%clk 0:01:06]} 30. Nxd4 {[%clk 0:00:50]}  Rad8 {[%clk 0:01:04]} 31. Rd1 {[%clk 0:00:49]}  Rg7 {[%clk 0:00:36]} 32. Qc1 {[%clk 0:00:34]}  Qf7 {[%clk 0:00:27]} 33. Bxh6 {[%clk 0:00:25]}  Rgg8 {[%clk 0:00:21]} 34. Bg5 {[%clk 0:00:24]}  Rd7 {[%clk 0:00:20]} 35. Nxe6 {[%clk 0:00:22]}  Rxd1+ {[%clk 0:00:16]} 36. Qxd1 {[%clk 0:00:21]}  Qxe6 {[%clk 0:00:16]} 37. Qb1 {[%clk 0:00:21]}  Nd5 {[%clk 0:00:08]} 38. Nxf5 {[%clk 0:00:19]}  Qg6 {[%clk 0:00:07]} 39. e6 {[%clk 0:00:15]}  Rf8 {[%clk 0:00:06]} 40. e7 {[%clk 0:00:15]}  Nxe7 {[%clk 0:00:06]} 41. Bxe7 {[%clk 0:00:15]}  Qxf5 {[%clk 0:00:06]} 42. Qe1 {[%clk 0:00:14]}  Re8 {[%clk 0:00:07]} 43. Qe3 {[%clk 0:00:11]}  a4 {[%clk 0:00:07]} 44. bxa4 {[%clk 0:00:11]}  bxa4 {[%clk 0:00:08]} 45. h5 {[%clk 0:00:11]}  a3 {[%clk 0:00:07]} 46. h6 {[%clk 0:00:06]}  a2 {[%clk 0:00:06]} 0-1


[Site "https://www.chess.com"]

[Event "Titled Tuesday Blitz May 4 2021"]
[White "Gelman, Alexander"]
[Black "Pichot, Alan"]
[WhiteFideId "4118316"]
[BlackFideId "110973"]
[WhiteElo "2375"]
[BlackElo "2622"]
[Result "0-1"]
[Round "11"]
[TimeControl "180+1"]
[Date "2021.05.04"]
[WhiteClock "0:00:08"]
[BlackClock "0:01:13"]

1. d4 {[%clk 0:02:51]}  Nf6 {[%clk 0:02:59]} 2. Nc3 {[%clk 0:02:51]}  d5 {[%clk 0:02:59]} 3. Bf4 {[%clk 0:02:50]}  Bf5 {[%clk 0:02:58]} 4. f3 {[%clk 0:02:50]}  c6 {[%clk 0:02:58]} 5. g4 {[%clk 0:02:50]}  Bg6 {[%clk 0:02:58]} 6. h4 {[%clk 0:02:51]}  h6 {[%clk 0:02:59]} 7. e3 {[%clk 0:02:51]}  e6 {[%clk 0:02:59]} 8. Qd2 {[%clk 0:02:50]}  Bd6 {[%clk 0:02:57]} 9. Nge2 {[%clk 0:02:49]}  Qe7 {[%clk 0:02:57]} 10. O-O-O {[%clk 0:02:48]}  Nbd7 {[%clk 0:02:57]} 11. Bxd6 {[%clk 0:02:48]}  Qxd6 {[%clk 0:02:58]} 12. Nf4 {[%clk 0:02:49]}  Nf8 {[%clk 0:02:49]} 13. Rg1 {[%clk 0:01:53]}  O-O-O {[%clk 0:02:47]} 14. h5 {[%clk 0:01:50]}  Bh7 {[%clk 0:02:47]} 15. g5 {[%clk 0:01:51]}  Ne8 {[%clk 0:02:41]} 16. e4 {[%clk 0:01:45]}  hxg5 {[%clk 0:02:26]} 17. Rxg5 {[%clk 0:01:45]}  Qe7 {[%clk 0:02:26]} 18. Rg1 {[%clk 0:01:15]}  dxe4 {[%clk 0:02:24]} 19. Nxe4 {[%clk 0:00:48]}  e5 {[%clk 0:02:14]} 20. Bh3+ {[%clk 0:00:36]}  Kb8 {[%clk 0:02:13]} 21. Ne2 {[%clk 0:00:32]}  Ne6 {[%clk 0:02:12]} 22. Bxe6 {[%clk 0:00:20]}  Qxe6 {[%clk 0:02:13]} 23. Qa5 {[%clk 0:00:20]}  Rd5 {[%clk 0:01:51]} 24. Nc5 {[%clk 0:00:18]}  Qe7 {[%clk 0:01:48]} 25. Qb4 {[%clk 0:00:18]}  Ka8 {[%clk 0:01:43]} 26. c4 {[%clk 0:00:18]}  Rd8 {[%clk 0:01:36]} 27. dxe5 {[%clk 0:00:18]}  b6 {[%clk 0:01:21]} 28. Rxd8+ {[%clk 0:00:15]}  Qxd8 {[%clk 0:01:22]} 29. Na6 {[%clk 0:00:14]}  Qd3 {[%clk 0:01:13]} 30. Qd2 {[%clk 0:00:08]}  Qb1# {[%clk 0:01:13]} 0-1


[Site "https://www.chess.com"]

[Event "Titled Tuesday Blitz May 4 2021"]
[White "Golubev, Mikhail"]
[Black "Region_07"]
[WhiteFideId "14100983"]
[WhiteElo "2374"]
[BlackElo "2411"]
[Result "0-1"]
[Round "11"]
[TimeControl "180+1"]
[Date "2021.05.04"]
[WhiteClock "0:00:07"]
[BlackClock "0:00:09"]

1. e4 {[%clk 0:02:53]}  Nc6 {[%clk 0:02:59]} 2. Nf3 {[%clk 0:02:45]}  d6 {[%clk 0:02:58]} 3. Nc3 {[%clk 0:02:43]}  g6 {[%clk 0:02:56]} 4. d4 {[%clk 0:02:42]}  Bg7 {[%clk 0:02:56]} 5. Be2 {[%clk 0:02:39]}  Bg4 {[%clk 0:02:54]} 6. Be3 {[%clk 0:02:32]}  Nf6 {[%clk 0:02:52]} 7. O-O {[%clk 0:02:31]}  O-O {[%clk 0:02:51]} 8. d5 {[%clk 0:02:27]}  Bxf3 {[%clk 0:02:35]} 9. Bxf3 {[%clk 0:02:27]}  Ne5 {[%clk 0:02:34]} 10. Be2 {[%clk 0:02:27]}  c5 {[%clk 0:02:32]} 11. f4 {[%clk 0:02:24]}  Ned7 {[%clk 0:02:29]} 12. Kh1 {[%clk 0:02:17]}  a6 {[%clk 0:02:22]} 13. a4 {[%clk 0:02:16]}  Qb6 {[%clk 0:01:53]} 14. Ra3 {[%clk 0:02:00]}  Qa5 {[%clk 0:01:34]} 15. Bc4 {[%clk 0:01:48]}  Qb4 {[%clk 0:01:26]} 16. Qd3 {[%clk 0:01:46]}  Nb6 {[%clk 0:01:16]} 17. Rb3 {[%clk 0:01:20]}  Qxc4 {[%clk 0:01:15]} 18. Rxb6 {[%clk 0:01:20]}  Qxd3 {[%clk 0:01:12]} 19. cxd3 {[%clk 0:01:21]}  Rab8 {[%clk 0:01:07]} 20. Rc1 {[%clk 0:01:05]}  Nd7 {[%clk 0:01:06]} 21. Rb3 {[%clk 0:01:05]}  Bxc3 {[%clk 0:01:01]} 22. bxc3 {[%clk 0:01:03]}  b5 {[%clk 0:01:01]} 23. axb5 {[%clk 0:00:59]}  axb5 {[%clk 0:01:01]} 24. Ra1 {[%clk 0:00:58]}  Rb7 {[%clk 0:00:54]} 25. h3 {[%clk 0:00:50]}  Rfb8 {[%clk 0:00:51]} 26. Rab1 {[%clk 0:00:49]}  f5 {[%clk 0:00:44]} 27. exf5 {[%clk 0:00:41]}  gxf5 {[%clk 0:00:43]} 28. Kg1 {[%clk 0:00:39]}  Nf6 {[%clk 0:00:38]} 29. c4 {[%clk 0:00:36]}  Kf7 {[%clk 0:00:33]} 30. Kf2 {[%clk 0:00:32]}  Ke8 {[%clk 0:00:33]} 31. Ke2 {[%clk 0:00:21]}  Kd7 {[%clk 0:00:32]} 32. d4 {[%clk 0:00:10]}  Kc7 {[%clk 0:00:27]} 33. dxc5 {[%clk 0:00:10]}  bxc4 {[%clk 0:00:27]} 34. cxd6+ {[%clk 0:00:08]}  exd6 {[%clk 0:00:26]} 35. Rxb7+ {[%clk 0:00:08]}  Rxb7 {[%clk 0:00:27]} 36. Rc1 {[%clk 0:00:08]}  Rb2+ {[%clk 0:00:19]} 37. Kf3 {[%clk 0:00:05]}  Rb4 {[%clk 0:00:18]} 38. g4 {[%clk 0:00:05]}  Nxd5 {[%clk 0:00:17]} 39. gxf5 {[%clk 0:00:05]}  Kd7 {[%clk 0:00:17]} 40. Ke4 {[%clk 0:00:03]}  Nf6+ {[%clk 0:00:17]} 41. Kd4 {[%clk 0:00:03]}  d5 {[%clk 0:00:17]} 42. Ke5 {[%clk 0:00:02]}  Ke7 {[%clk 0:00:15]} 43. Bc5+ {[%clk 0:00:02]}  Kf7 {[%clk 0:00:14]} 44. Bxb4 {[%clk 0:00:03]}  Nd7+ {[%clk 0:00:11]} 45. Kd6 {[%clk 0:00:02]}  Nb6 {[%clk 0:00:11]} 46. Ra1 {[%clk 0:00:02]}  Na4 {[%clk 0:00:12]} 47. Rxa4 {[%clk 0:00:02]}  d4 {[%clk 0:00:12]} 48. Ra7+ {[%clk 0:00:02]}  Kf6 {[%clk 0:00:11]} 49. Rc7 {[%clk 0:00:03]}  c3 {[%clk 0:00:11]} 50. Rc4 {[%clk 0:00:04]}  c2 {[%clk 0:00:10]} 51. Rxd4 {[%clk 0:00:05]}  c1=Q {[%clk 0:00:11]} 52. Ba3 {[%clk 0:00:06]}  Qg1 {[%clk 0:00:10]} 53. Bc1 {[%clk 0:00:07]}  Qxd4+ {[%clk 0:00:09]} 0-1


[Site "https://www.chess.com"]

[Event "Titled Tuesday Blitz May 4 2021"]
[White "Gombocz, Ferenc Jr."]
[Black "Seul, Georg"]
[WhiteFideId "775029"]
[BlackFideId "4601653"]
[WhiteElo "1913"]
[BlackElo "2332"]
[Result "1-0"]
[Round "11"]
[TimeControl "180+1"]
[Date "2021.05.04"]
[WhiteClock "0:00:02"]
[BlackClock "0:00:01"]

1. c4 {[%clk 0:03:00]}  e5 {[%clk 0:02:59]} 2. g3 {[%clk 0:03:00]}  Nf6 {[%clk 0:02:58]} 3. Bg2 {[%clk 0:03:00]}  Nc6 {[%clk 0:02:58]} 4. Nc3 {[%clk 0:03:00]}  Bc5 {[%clk 0:02:58]} 5. e3 {[%clk 0:03:00]}  d6 {[%clk 0:02:58]} 6. Nge2 {[%clk 0:03:00]}  a6 {[%clk 0:02:58]} 7. d4 {[%clk 0:03:00]}  Ba7 {[%clk 0:02:58]} 8. O-O {[%clk 0:02:59]}  O-O {[%clk 0:02:58]} 9. h3 {[%clk 0:02:56]}  h6 {[%clk 0:02:55]} 10. Kh2 {[%clk 0:02:54]}  Re8 {[%clk 0:02:54]} 11. f4 {[%clk 0:02:53]}  exd4 {[%clk 0:02:53]} 12. exd4 {[%clk 0:02:51]}  Bf5 {[%clk 0:02:46]} 13. a3 {[%clk 0:02:46]}  Ne4 {[%clk 0:02:45]} 14. d5 {[%clk 0:02:24]}  Nxc3 {[%clk 0:02:39]} 15. Nxc3 {[%clk 0:02:23]}  Nd4 {[%clk 0:02:36]} 16. b4 {[%clk 0:02:13]}  Nc2 {[%clk 0:02:27]} 17. Ra2 {[%clk 0:02:08]}  Ne3 {[%clk 0:02:24]} 18. Bxe3 {[%clk 0:02:08]}  Rxe3 {[%clk 0:02:24]} 19. Ne2 {[%clk 0:01:59]}  Qf6 {[%clk 0:02:01]} 20. g4 {[%clk 0:01:50]}  Bxg4 {[%clk 0:01:56]} 21. c5 {[%clk 0:01:32]}  Bxe2 {[%clk 0:01:51]} 22. Rxe2 {[%clk 0:01:32]}  Rae8 {[%clk 0:01:50]} 23. Rxe3 {[%clk 0:01:28]}  Rxe3 {[%clk 0:01:49]} 24. Qc2 {[%clk 0:01:23]}  Qe7 {[%clk 0:01:45]} 25. Rc1 {[%clk 0:01:16]}  Re2 {[%clk 0:01:40]} 26. Qc4 {[%clk 0:01:15]}  Qe3 {[%clk 0:01:34]} 27. cxd6 {[%clk 0:01:10]}  Rxg2+ {[%clk 0:00:50]} 28. Kxg2 {[%clk 0:01:01]}  Qf2+ {[%clk 0:00:49]} 29. Kh1 {[%clk 0:01:01]}  Qf3+ {[%clk 0:00:40]} 30. Kh2 {[%clk 0:01:01]}  Bf2 {[%clk 0:00:09]} 31. Qf1 {[%clk 0:00:35]}  Qxf4+ {[%clk 0:00:07]} 32. Kh1 {[%clk 0:00:29]}  cxd6 {[%clk 0:00:07]} 33. Rc8+ {[%clk 0:00:23]}  Kh7 {[%clk 0:00:07]} 34. Qg2 {[%clk 0:00:15]}  g6 {[%clk 0:00:06]} 35. Rc7 {[%clk 0:00:13]}  h5 {[%clk 0:00:05]} 36. Rc2 {[%clk 0:00:12]}  Bg3 {[%clk 0:00:04]} 37. Qe2 {[%clk 0:00:09]}  h4 {[%clk 0:00:04]} 38. Rc4 {[%clk 0:00:08]}  Qf5 {[%clk 0:00:03]} 39. Qg2 {[%clk 0:00:06]}  Qb1+ {[%clk 0:00:03]} 40. Qg1 {[%clk 0:00:06]}  Qd3 {[%clk 0:00:02]} 41. Rg4 {[%clk 0:00:05]}  Qxd5+ {[%clk 0:00:02]} 42. Qg2 {[%clk 0:00:05]}  Qe5 {[%clk 0:00:01]} 43. Qc2 {[%clk 0:00:03]}  f5 {[%clk 0:00:01]} 44. Rxh4+ {[%clk 0:00:02]} 1-0


[Site "https://www.chess.com"]

[Event "Titled Tuesday Blitz May 4 2021"]
[White "Gretarsson, Helgi Ass"]
[Black "DieHardCuban"]
[WhiteFideId "2300699"]
[WhiteElo "2519"]
[BlackElo "2403"]
[Result "1-0"]
[Round "11"]
[TimeControl "180+1"]
[Date "2021.05.04"]
[WhiteClock "0:00:47"]
[BlackClock "0:00:13"]

1. g3 {[%clk 0:03:00]}  c5 {[%clk 0:02:50]} 2. Bg2 {[%clk 0:03:01]}  g6 {[%clk 0:02:50]} 3. c4 {[%clk 0:02:58]}  Bg7 {[%clk 0:02:50]} 4. Nc3 {[%clk 0:02:58]}  Nc6 {[%clk 0:02:50]} 5. e3 {[%clk 0:02:53]}  d6 {[%clk 0:02:42]} 6. Nge2 {[%clk 0:02:52]}  Bf5 {[%clk 0:02:31]} 7. d4 {[%clk 0:02:42]}  Qd7 {[%clk 0:02:13]} 8. h3 {[%clk 0:02:41]}  cxd4 {[%clk 0:01:51]} 9. Nxd4 {[%clk 0:02:33]}  Nxd4 {[%clk 0:01:46]} 10. exd4 {[%clk 0:02:32]}  Qe6+ {[%clk 0:01:27]} 11. Be3 {[%clk 0:02:15]}  Qxc4 {[%clk 0:01:22]} 12. Bxb7 {[%clk 0:02:15]}  Rb8 {[%clk 0:01:22]} 13. Bd5 {[%clk 0:02:13]}  Qa6 {[%clk 0:01:12]} 14. g4 {[%clk 0:01:30]}  Bd7 {[%clk 0:00:58]} 15. Bb3 {[%clk 0:01:29]}  Nf6 {[%clk 0:00:47]} 16. g5 {[%clk 0:01:23]}  Nh5 {[%clk 0:00:45]} 17. Nd5 {[%clk 0:01:23]}  O-O {[%clk 0:00:41]} 18. Nxe7+ {[%clk 0:01:13]}  Kh8 {[%clk 0:00:41]} 19. Qe2 {[%clk 0:01:13]}  Bb5 {[%clk 0:00:40]} 20. Qf3 {[%clk 0:01:11]}  Rbe8 {[%clk 0:00:29]} 21. Nd5 {[%clk 0:01:11]}  Qa5+ {[%clk 0:00:25]} 22. Kd1 {[%clk 0:01:00]}  Ba4 {[%clk 0:00:17]} 23. Bd2 {[%clk 0:00:48]}  Rb8 {[%clk 0:00:13]} 24. Bxa5 {[%clk 0:00:47]} 1-0


[Site "https://www.chess.com"]

[Event "Titled Tuesday Blitz May 4 2021"]
[White "Grigoryan, Meri"]
[Black "Zhurbinsky, David"]
[WhiteFideId "13300571"]
[BlackFideId "2072904"]
[WhiteElo "2007"]
[BlackElo "2435"]
[Result "1/2-1/2"]
[Round "11"]
[TimeControl "180+1"]
[Date "2021.05.04"]
[WhiteClock "0:00:30"]
[BlackClock "0:00:11"]

1. d4 {[%clk 0:03:00]}  e5 {[%clk 0:03:00]} 2. dxe5 {[%clk 0:02:56]}  Nc6 {[%clk 0:03:01]} 3. Nf3 {[%clk 0:02:56]}  Qe7 {[%clk 0:03:01]} 4. Nc3 {[%clk 0:02:55]}  Nxe5 {[%clk 0:03:01]} 5. Nxe5 {[%clk 0:02:53]}  Qxe5 {[%clk 0:03:02]} 6. Qd5 {[%clk 0:02:53]}  Bd6 {[%clk 0:02:50]} 7. Qxe5+ {[%clk 0:02:50]}  Bxe5 {[%clk 0:02:51]} 8. Bd2 {[%clk 0:02:51]}  Nf6 {[%clk 0:02:51]} 9. O-O-O {[%clk 0:02:51]}  c6 {[%clk 0:02:50]} 10. f3 {[%clk 0:02:51]}  d5 {[%clk 0:02:50]} 11. e4 {[%clk 0:02:50]}  dxe4 {[%clk 0:02:49]} 12. Nxe4 {[%clk 0:02:50]}  Nxe4 {[%clk 0:02:48]} 13. fxe4 {[%clk 0:02:51]}  Bg4 {[%clk 0:02:45]} 14. Re1 {[%clk 0:02:49]}  O-O-O {[%clk 0:02:45]} 15. Be2 {[%clk 0:02:47]}  Be6 {[%clk 0:02:41]} 16. a3 {[%clk 0:02:47]}  Bxb2+ {[%clk 0:02:40]} 17. Kxb2 {[%clk 0:02:43]}  Rxd2 {[%clk 0:02:39]} 18. Rhf1 {[%clk 0:02:40]}  Rhd8 {[%clk 0:02:34]} 19. g4 {[%clk 0:02:30]}  R8d4 {[%clk 0:02:27]} 20. Kc3 {[%clk 0:02:05]}  Rd8 {[%clk 0:02:15]} 21. h4 {[%clk 0:01:55]}  Kc7 {[%clk 0:02:14]} 22. h5 {[%clk 0:01:25]}  b5 {[%clk 0:02:12]} 23. e5 {[%clk 0:01:14]}  Kb6 {[%clk 0:02:08]} 24. g5 {[%clk 0:01:14]}  R2d4 {[%clk 0:01:55]} 25. Bd3 {[%clk 0:01:08]}  g6 {[%clk 0:01:35]} 26. hxg6 {[%clk 0:00:58]}  hxg6 {[%clk 0:01:36]} 27. Rf6 {[%clk 0:00:58]}  Rg4 {[%clk 0:01:09]} 28. Bxg6 {[%clk 0:00:54]}  Rg3+ {[%clk 0:01:05]} 29. Kb2 {[%clk 0:00:48]}  Rd7 {[%clk 0:00:44]} 30. Bxf7 {[%clk 0:00:43]}  Bxf7 {[%clk 0:00:41]} 31. e6 {[%clk 0:00:43]}  Bxe6 {[%clk 0:00:37]} 32. Rexe6 {[%clk 0:00:42]}  Rxg5 {[%clk 0:00:36]} 33. Rxc6+ {[%clk 0:00:42]}  Kb7 {[%clk 0:00:37]} 34. Rc3 {[%clk 0:00:37]}  Rgd5 {[%clk 0:00:32]} 35. Rfc6 {[%clk 0:00:36]}  a5 {[%clk 0:00:28]} 36. R6c5 {[%clk 0:00:34]}  Rxc5 {[%clk 0:00:26]} 37. Rxc5 {[%clk 0:00:35]}  Kb6 {[%clk 0:00:27]} 38. Rc3 {[%clk 0:00:35]}  Rd4 {[%clk 0:00:27]} 39. Kb3 {[%clk 0:00:35]}  Rd1 {[%clk 0:00:25]} 40. Kb2 {[%clk 0:00:35]}  Rh1 {[%clk 0:00:24]} 41. Rc8 {[%clk 0:00:34]}  Rh6 {[%clk 0:00:22]} 42. Rc3 {[%clk 0:00:34]}  b4 {[%clk 0:00:20]} 43. axb4 {[%clk 0:00:34]}  axb4 {[%clk 0:00:21]} 44. Rc8 {[%clk 0:00:34]}  Kb5 {[%clk 0:00:20]} 45. Rb8+ {[%clk 0:00:34]}  Kc5 {[%clk 0:00:21]} 46. Rc8+ {[%clk 0:00:34]}  Kd4 {[%clk 0:00:21]} 47. Rd8+ {[%clk 0:00:34]}  Ke3 {[%clk 0:00:20]} 48. Kb3 {[%clk 0:00:34]}  Rb6 {[%clk 0:00:20]} 49. Rc8 {[%clk 0:00:32]}  Kd2 {[%clk 0:00:20]} 50. Rd8+ {[%clk 0:00:32]}  Kc1 {[%clk 0:00:19]} 51. Rc8 {[%clk 0:00:31]}  Kd2 {[%clk 0:00:17]} 52. Rc4 {[%clk 0:00:31]}  Rb8 {[%clk 0:00:12]} 53. Rd4+ {[%clk 0:00:30]}  Kc1 {[%clk 0:00:12]} 54. Rxb4 {[%clk 0:00:30]}  Rxb4+ {[%clk 0:00:10]} 55. Kxb4 {[%clk 0:00:30]}  Kxc2 {[%clk 0:00:11]} 1/2-1/2


[Site "https://www.chess.com"]

[Event "Titled Tuesday Blitz May 4 2021"]
[White "Gurevich, Dmitry"]
[Black "Bendayan Claros, Aaron"]
[WhiteFideId "2000407"]
[BlackFideId "3803392"]
[WhiteElo "2506"]
[BlackElo "2166"]
[Result "1-0"]
[Round "11"]
[TimeControl "180+1"]
[Date "2021.05.04"]
[WhiteClock "0:00:09"]
[BlackClock "0:00:05"]

1. e4 {[%clk 0:03:00]}  c6 {[%clk 0:02:58]} 2. d4 {[%clk 0:02:59]}  d5 {[%clk 0:02:57]} 3. e5 {[%clk 0:02:59]}  Bf5 {[%clk 0:02:52]} 4. h4 {[%clk 0:02:59]}  h5 {[%clk 0:02:52]} 5. c4 {[%clk 0:02:57]}  e6 {[%clk 0:02:52]} 6. Nc3 {[%clk 0:02:57]}  Ne7 {[%clk 0:02:40]} 7. Nge2 {[%clk 0:02:56]}  Nd7 {[%clk 0:02:39]} 8. Nf4 {[%clk 0:02:47]}  g6 {[%clk 0:02:03]} 9. Be3 {[%clk 0:02:28]}  dxc4 {[%clk 0:02:01]} 10. Bxc4 {[%clk 0:02:27]}  Nb6 {[%clk 0:02:01]} 11. Bb3 {[%clk 0:02:20]}  Ned5 {[%clk 0:02:01]} 12. Qf3 {[%clk 0:02:07]}  Bb4 {[%clk 0:01:56]} 13. Rc1 {[%clk 0:02:05]}  Bg4 {[%clk 0:01:44]} 14. Qg3 {[%clk 0:01:58]}  Nxc3 {[%clk 0:01:36]} 15. bxc3 {[%clk 0:01:57]}  Ba3 {[%clk 0:01:36]} 16. Rc2 {[%clk 0:01:50]}  Nd5 {[%clk 0:01:30]} 17. O-O {[%clk 0:01:33]}  Be7 {[%clk 0:01:28]} 18. Nxd5 {[%clk 0:01:27]}  cxd5 {[%clk 0:01:27]} 19. Ba4+ {[%clk 0:01:22]}  Kf8 {[%clk 0:01:26]} 20. Bg5 {[%clk 0:01:16]}  Bxg5 {[%clk 0:01:17]} 21. hxg5 {[%clk 0:01:15]}  Qxg5 {[%clk 0:01:04]} 22. c4 {[%clk 0:01:13]}  h4 {[%clk 0:00:51]} 23. Qe3 {[%clk 0:01:12]}  Qxe3 {[%clk 0:00:46]} 24. fxe3 {[%clk 0:01:12]}  dxc4 {[%clk 0:00:43]} 25. Bb5 {[%clk 0:01:00]}  Bf5 {[%clk 0:00:40]} 26. Rc3 {[%clk 0:00:55]}  Bd3 {[%clk 0:00:37]} 27. Rfc1 {[%clk 0:00:53]}  h3 {[%clk 0:00:28]} 28. Bxc4 {[%clk 0:00:49]}  Bxc4 {[%clk 0:00:22]} 29. Rxc4 {[%clk 0:00:49]}  hxg2 {[%clk 0:00:22]} 30. Kxg2 {[%clk 0:00:50]}  Kg7 {[%clk 0:00:20]} 31. Rc7 {[%clk 0:00:49]}  b6 {[%clk 0:00:14]} 32. Rb7 {[%clk 0:00:37]}  Rhc8 {[%clk 0:00:13]} 33. Rxc8 {[%clk 0:00:34]}  Rxc8 {[%clk 0:00:14]} 34. Rxa7 {[%clk 0:00:35]}  Rc2+ {[%clk 0:00:13]} 35. Kf3 {[%clk 0:00:34]}  Rb2 {[%clk 0:00:13]} 36. e4 {[%clk 0:00:29]}  g5 {[%clk 0:00:12]} 37. d5 {[%clk 0:00:27]}  exd5 {[%clk 0:00:12]} 38. exd5 {[%clk 0:00:23]}  Rb5 {[%clk 0:00:11]} 39. Ke4 {[%clk 0:00:22]}  Rb4+ {[%clk 0:00:09]} 40. Kf5 {[%clk 0:00:22]}  Rb5 {[%clk 0:00:07]} 41. d6 {[%clk 0:00:20]}  g4 {[%clk 0:00:05]} 42. d7 {[%clk 0:00:16]}  Rd5 {[%clk 0:00:05]} 43. Ke4 {[%clk 0:00:11]}  Rd1 {[%clk 0:00:04]} 44. e6 {[%clk 0:00:11]}  Kf8 {[%clk 0:00:02]} 45. d8=Q+ {[%clk 0:00:09]}  Rxd8 {[%clk 0:00:01]} 46. e7+ {[%clk 0:00:10]}  Ke8 {[%clk 0:00:01]} 47. exd8=Q+ {[%clk 0:00:10]}  Kxd8 {[%clk 0:00:02]} 48. Kf4 {[%clk 0:00:10]}  f5 {[%clk 0:00:02]} 49. Kxf5 {[%clk 0:00:10]}  Kc8 {[%clk 0:00:03]} 50. Kxg4 {[%clk 0:00:09]}  Kb8 {[%clk 0:00:03]} 51. Rh7 {[%clk 0:00:09]}  b5 {[%clk 0:00:04]} 52. Kf4 {[%clk 0:00:10]}  b4 {[%clk 0:00:04]} 53. Ke3 {[%clk 0:00:09]}  b3 {[%clk 0:00:05]} 54. axb3 {[%clk 0:00:09]} 1-0


[Site "https://www.chess.com"]